bitfinex-derivatives/quotes_ETHF0:USTF0_20241105
["timestamp","ask_amount","ask_price","bid_price","bid_amount"]
[1730810740234,2.36008,2444.7,2444.2,0.9012]
[1730810740537,0.40923,2444.6,2444.5,0.40921]
[1730810740737,0.40923,2444.6,2444.2,0.9012]
[1730810740738,0.40925,2444.5,2444.4,0.40922]
[1730810741239,5.11426,2444.5,2444.0,1.02323]
[1730810741440,3.61707,2444.3,2444.2,0.40926]
[1730810742329,0.40929,2444.2,2444.1,0.40927]
[1730810742527,1.76989,2444.2,2444.1,0.40927]
[1730810744534,0.9045,2444.2,2444.1,0.40927]
[1730810744740,3.61706,2444.3,2444.2,0.40927]
[1730810750232,3.2078,2444.3,2444.2,0.40927]
[1730810750736,0.40921,2444.6,2444.5,0.40922]
[1730810750737,3.2078,2444.6,2444.5,0.40922]
[1730810751131,1.73987,2444.8,2444.7,0.40919]
[1730810751336,1.3307,2444.8,2444.7,0.40919]
[1730810751844,1.73987,2444.8,2444.7,0.40919]
[1730810757640,1.73987,2444.8,2444.3,1.3148]
[1730810757641,0.40924,2444.4,2444.3,0.4507]
[1730810757851,3.61704,2444.4,2444.3,0.40925]
[1730810758050,3.61704,2444.4,2444.0,0.9395]
[1730810758051,3.2078,2444.4,2444.0,0.9395]
[1730810758350,3.2078,2444.4,2444.3,0.40925]
[1730810758650,3.2078,2444.4,2444.3,0.65094309]
[1730810758851,3.61704,2444.4,2444.3,0.65094309]
[1730810759053,3.2078,2444.4,2444.3,0.65094309]
[1730810759246,3.61704,2444.4,2444.3,0.40925]
[1730810759442,3.61704,2444.4,2444.3,0.6510433]
[1730810759641,3.61704,2444.4,2444.3,0.2417933]
[1730810760143,3.2078,2444.4,2444.0,0.9395]
[1730810760349,0.40926,2444.3,2444.2,0.40926]
[1730810760541,0.40926,2444.3,2444.2,0.6510529]
[1730810762241,0.40926,2444.3,2444.2,0.2417829]
[1730810762656,0.40926,2444.3,2444.2,0.6510529]
[1730810763150,0.40926,2444.3,2444.2,0.2417829]
[1730810764944,0.40926,2444.3,2444.2,0.6510529]
[1730810765552,0.40926,2444.3,2444.2,1.03809468]
[1730810766053,0.40926,2444.3,2444.2,1.62281662]
[1730810766248,4.1584,2444.4,2444.2,1.62281662]
[1730810766553,4.1584,2444.4,2444.0,0.9395]
[1730810766554,3.2078,2444.4,2444.3,0.6510329]
[1730810766751,3.2078,2444.4,2444.3,1.6227647]
[1730810767152,3.2078,2444.4,2444.3,4.50045]
[1730810767552,3.2078,2444.4,2444.3,0.40925]
[1730810767745,3.2078,2444.4,2444.3,4.50045]
[1730810767945,3.2078,2444.4,2444.3,0.40925]
[1730810768346,3.2078,2444.4,2444.3,1.38127026]
[1730810768559,3.2078,2444.4,2444.3,5.71442976]
[1730810768753,3.2078,2444.5,2444.3,5.30517976]
[1730810769053,3.2078,2444.5,2444.4,2.04219439]
[1730810769552,3.2078,2444.5,2444.4,2.6271477]
[1730810769752,3.2078,2444.5,2444.4,2.04219439]
[1730810769953,3.2078,2444.5,2444.4,2.62715848]
[1730810770757,3.61702,2444.5,2444.4,2.62715848]
[1730810770957,3.61702,2444.5,2444.4,2.04219439]
[1730810771263,3.61702,2444.5,2444.4,2.6271881]
[1730810772261,3.2078,2444.5,2444.4,2.6271881]
[1730810773359,3.61702,2444.5,2444.4,2.6271881]
[1730810773557,3.2078,2444.5,2444.4,2.6271881]
[1730810773761,3.2078,2444.5,2444.4,7.65447918]
[1730810774157,3.2078,2444.5,2444.4,8.16095814]
[1730810774469,3.2078,2444.5,2444.4,9.33065797]
[1730810774758,2.451,2444.5,2444.4,9.33065797]
[1730810774953,3.2078,2444.8,2444.7,0.40919]
[1730810775150,3.2078,2444.8,2444.7,1.6233381]
[1730810775766,3.2078,2444.8,2444.7,0.40919]
[1730810776068,3.2078,2444.8,2444.7,1.03827607]
[1730810776364,3.2078,2444.8,2444.7,1.62297818]
[1730810776365,3.61697,2444.8,2444.7,1.62297818]
[1730810776555,3.61697,2444.8,2444.7,1.03827607]
[1730810778263,3.61697,2444.8,2444.7,0.65112323]
[1730810778862,0.40917,2444.8,2444.7,0.65112323]
[1730810779052,3.61697,2444.8,2444.7,0.65112323]
[1730810779467,0.40917,2444.8,2444.7,0.65112323]
[1730810779664,3.61697,2444.8,2444.7,0.65112323]
[1730810780166,3.2078,2444.8,2444.7,0.65112323]
[1730810780567,3.61697,2444.8,2444.7,0.65112323]
[1730810781060,0.40917,2444.8,2444.7,0.65112323]
[1730810781260,3.61697,2444.8,2444.7,0.65112323]
[1730810781863,4.6816587,2445.1,2444.7,0.24193323]
[1730810782068,3.2078,2444.8,2444.7,0.40919]
[1730810782261,3.2078,2444.8,2444.7,0.65105708]
[1730810782458,3.2078,2444.8,2444.7,1.62257377]
[1730810783061,3.2078,2444.8,2444.7,1.62256077]
[1730810783561,3.2078,2444.8,2444.7,1.03794065]
[1730810783562,3.61697,2444.8,2444.7,1.03794065]
[1730810784160,0.40917,2444.8,2444.7,1.03794065]
[1730810784964,0.40917,2444.8,2444.7,0.65099423]
[1730810785665,3.2078,2445.0,2444.7,0.65099423]
[1730810785969,0.40917,2444.9,2444.8,0.65095423]
[1730810787167,0.40917,2444.9,2444.8,0.65097423]
[1730810787364,0.4092,2444.7,2444.6,0.40918]
[1730810787562,3.2078,2445.0,2444.7,0.40919]
[1730810787563,1.81249,2444.8,2444.7,0.40919]
[1730810787763,1.81249,2444.8,2444.7,0.65101742]
[1730810788161,1.4033,2444.8,2444.6,0.40919]
[1730810788364,0.40919,2444.7,2444.6,0.40919]
[1730810788564,0.40919,2444.7,2444.6,0.65102719]
[1730810790668,0.40919,2444.7,2444.6,0.40919]
[1730810790868,0.40919,2444.7,2444.6,0.65104234]
[1730810793774,1.81249,2444.8,2444.7,0.40919]
[1730810794071,1.81249,2444.8,2444.7,0.65108409]
[1730810794273,5.90289,2444.8,2444.7,0.40919]
[1730810794671,5.4937,2444.8,2444.4,1.02309]
[1730810794871,0.40921,2444.7,2444.6,0.40919]
[1730810795072,0.40921,2444.7,2444.6,0.65111341]
[1730810796580,3.61701,2444.7,2444.6,0.65111341]
[1730810797774,3.61701,2444.7,2444.6,0.40919]
[1730810797976,3.61701,2444.7,2444.6,0.65106834]
[1730810798275,3.61701,2444.7,2444.6,0.65106214]
[1730810798670,3.61701,2444.7,2444.6,0.24187214]
[1730810798870,3.61701,2444.7,2444.6,0.65107214]
[1730810800378,3.2078,2444.7,2444.6,0.65107214]
[1730810801882,3.2078,2444.7,2444.6,0.4092]
[1730810802086,3.2078,2444.7,2444.6,1.0380894]
[1730810802276,3.2078,2444.7,2444.6,0.79623181]
[1730810802581,3.2078,2444.7,2444.6,1.42507496]
[1730810802785,3.2078,2444.7,2444.6,1.03804315]
[1730810803080,3.2078,2444.7,2444.6,0.65105457]
[1730810803282,3.2078,2444.7,2444.6,1.038006]
[1730810803482,3.2078,2444.7,2444.6,5.71077894]
[1730810803783,3.2078,2444.7,2444.6,8.09900307]
[1730810804181,3.2078,2444.7,2444.6,3.07697894]
[1730810804982,3.2078,2444.7,2444.6,7.16737894]
[1730810805283,3.2078,2445.0,2444.9,0.40915]
[1730810805479,3.2078,2445.0,2444.9,0.65100457]
[1730810805676,3.2078,2445.0,2444.9,0.40915]
[1730810806178,3.2078,2445.0,2444.9,0.65083958]
[1730810806573,0.40912,2445.1,2444.9,0.24168958]
[1730810806884,0.40917,2444.9,2444.8,0.40915]
[1730810807082,0.40917,2444.9,2444.8,0.6508816]
[1730810807274,4.96097,2444.9,2444.8,0.6508816]
[1730810808681,0.87057,2444.9,2444.8,0.6508816]
[1730810809384,0.87057,2444.9,2444.8,0.65095585]
[1730810810686,0.87057,2444.9,2444.8,1.03797818]
[1730810812285,0.87057,2444.9,2444.8,1.62069752]
[1730810812691,0.87057,2444.9,2444.8,1.62095918]
[1730810812884,0.87057,2444.9,2444.8,0.6510811]
[1730810813178,0.87057,2444.9,2444.8,1.03825843]
[1730810813179,0.87055,2444.9,2444.8,1.03825843]
[1730810813386,7.7432487,2444.9,2444.8,0.24195203]
[1730810813690,4.96095,2444.9,2444.8,0.24195203]
[1730810814285,8.68430681,2444.9,2444.8,0.24195203]
[1730810814591,4.96095,2444.9,2444.8,0.24195203]
[1730810815090,8.68430681,2444.9,2444.8,0.24195203]
[1730810815287,4.96095,2444.9,2444.8,0.24195203]
[1730810815494,8.16875,2444.9,2444.8,0.65112203]
[1730810815679,11.89210681,2444.9,2444.8,0.65112203]
[1730810815885,11.89210681,2444.9,2444.8,0.24195203]
[1730810816690,11.89210681,2444.9,2444.8,0.40917]
[1730810816992,11.89210681,2444.9,2444.8,0.2419837]
[1730810817394,13.07135131,2444.9,2444.8,0.2419837]
[1730810817903,12.66220131,2444.9,2444.5,0.40921]
[1730810818091,0.4092,2444.6,2444.5,0.40921]
[1730810818392,0.4092,2444.6,2444.5,0.79648357]
[1730810818393,3.62857833,2444.6,2444.5,0.79648357]
[1730810818588,11.42817833,2444.6,2444.5,0.24200241]
[1730810818799,52.73215681,2444.6,2444.5,0.24200241]
[1730810819293,0.40925,2444.4,2444.3,0.40924]
[1730810819483,3.6286205,2444.4,2444.3,1.03854608]
[1730810819885,0.40925,2444.4,2444.3,0.62930608]
[1730810820288,1.36595,2444.4,2444.3,0.62930608]
[1730810820483,1.36595,2444.4,2444.3,1.03855608]
[1730810821298,1.36595,2444.4,2444.3,0.65127599]
[1730810821994,1.36595,2444.4,2444.3,1.03834443]
[1730810822194,1.36595,2444.4,2444.3,0.65127599]
[1730810822886,1.36595,2444.4,2444.3,0.40925]
[1730810823087,1.36595,2444.4,2444.3,0.65112586]
[1730810823286,1.36595,2444.4,2444.3,0.40925]
[1730810823495,1.36595,2444.4,2444.3,0.65113577]
[1730810823693,1.36595,2444.4,2444.3,0.89300742]
[1730810825689,6.4271705,2444.5,2444.3,0.48375742]
[1730810825997,3.2078,2444.5,2444.4,0.65096981]
[1730810826289,3.61702,2444.5,2444.4,1.12156981]
[1730810826485,3.61702,2444.5,2444.4,1.12153437]
[1730810827492,3.2078,2444.5,2444.4,1.12153437]
[1730810827696,3.61702,2444.5,2444.4,1.12153437]
[1730810828098,0.40922,2444.5,2444.4,1.12153437]
[1730810828291,3.61702,2444.5,2444.4,1.12153437]
[1730810829097,3.2078,2444.5,2444.4,1.12153437]
[1730810829595,3.61702,2444.5,2444.4,1.12153437]
[1730810830699,3.2078,2444.5,2444.4,1.12153437]
[1730810831194,4.1299805,2444.6,2444.4,0.71229437]
[1730810831195,3.2193705,2444.6,2444.4,0.71229437]
[1730810831494,7.3149405,2444.8,2444.7,0.40919]
[1730810831694,4.09557,2444.8,2444.7,0.40919]
[1730810832590,4.09557,2444.8,2444.7,0.65078]
[1730810832791,4.09557,2444.8,2444.7,0.65078361]
[1730810832989,4.09557,2444.8,2444.7,0.40919]
[1730810833185,4.09557,2444.8,2444.7,0.65077879]
[1730810833392,7.3149405,2444.8,2444.7,0.65077879]
[1730810833897,4.09557,2444.8,2444.7,0.6507958]
[1730810834099,7.3149405,2444.8,2444.7,0.6507958]
[1730810834303,7.3149405,2444.8,2444.7,0.89241702]
[1730810834603,4.1071405,2444.8,2444.7,0.65081122]
[1730810834901,7.3149405,2444.8,2444.7,0.65081122]
[1730810835105,4.09557,2444.8,2444.7,0.65081122]
[1730810835400,3.2078,2444.8,2444.7,0.65081122]
[1730810836390,3.2078,2444.8,2444.7,1.03745302]
[1730810836793,5.88826355,2444.8,2444.7,5.12785302]
[1730810836994,5.88826355,2444.8,2444.7,5.70977671]
[1730810837201,5.88826355,2444.8,2444.7,6.19417671]
[1730810837406,2.68046355,2444.9,2444.7,5.78498671]
[1730810837605,2.68046355,2444.9,2444.8,1.61935671]
[1730810837905,2.68046355,2444.9,2444.8,5.70975671]
[1730810838593,2.68046355,2444.9,2444.8,5.12783302]
[1730810838795,2.68046355,2444.9,2444.8,5.70961334]
[1730810839198,3.2078,2445.1,2444.9,0.40915]
[1730810839199,2.68046355,2445.0,2444.9,0.40915]
[1730810839502,2.68046355,2445.0,2444.9,1.13247122]
[1730810839699,5.88826355,2445.1,2444.9,5.20019648]
[1730810839905,5.88826355,2445.1,2445.0,0.65076122]
[1730810840103,5.88826355,2445.1,2445.0,1.03716974]
[1730810840300,5.88826355,2445.1,2445.0,3.59264674]
[1730810840498,3.2078,2445.1,2445.0,8.26376029]
[1730810841294,3.2078,2445.1,2445.0,7.44062552]
[1730810841597,3.2078,2445.1,2445.0,8.26302018]
[1730810843003,3.2078,2445.1,2445.0,8.49844283]
[1730810843208,2.68046355,2445.4,2445.3,0.40909]
[1730810843403,3.08953355,2445.4,2445.3,0.40909]
[1730810845610,6.29733355,2445.4,2445.3,0.40909]
[1730810846798,3.61687,2445.4,2445.3,0.40909]
[1730810848013,3.2078,2445.4,2445.3,0.40909]
[1730810848311,3.2078,2445.4,2445.3,2.964567]
[1730810848606,3.2078,2445.4,2445.3,7.29510487]
[1730810849404,0.4888,2445.8,2445.3,8.71694689]
[1730810849605,3.2078,2445.9,2445.8,0.409]
[1730810850210,3.2078,2445.9,2445.8,0.8669]
[1730810850406,0.40894,2446.2,2445.8,0.4579]
[1730810850611,7.36476355,2446.3,2446.2,0.40894]
[1730810850816,4.6843,2446.3,2446.2,0.40894]
[1730810851415,5.09322,2446.3,2446.2,0.40894]
[1730810851709,4.6843,2446.3,2446.2,0.40894]
[1730810852010,4.182,2446.3,2446.2,0.40894]
[1730810852202,3.6966,2446.3,2446.2,4.49694]
[1730810853911,3.2078,2446.3,2446.2,4.49694]
[1730810857715,3.7077,2446.6,2446.5,0.40889]
[1730810863117,0.4999,2446.6,2446.5,0.40889]
[1730810866822,0.90877,2446.6,2446.5,0.40889]
[1730810867016,0.4999,2446.6,2446.5,0.40889]
[1730810870728,0.90877,2446.6,2446.5,0.40889]
[1730810871020,4.5871,2446.6,2446.2,1.02233]
[1730810871225,0.40892,2446.4,2446.3,0.4089]
[1730810871613,0.40893,2446.3,2446.2,0.40891]
[1730810871817,0.88063,2446.3,2446.2,0.40891]
[1730810872222,0.4717,2446.3,2446.2,0.40891]
[1730810872619,0.88062,2446.3,2446.2,0.40891]
[1730810872927,40.8,2446.4,2446.3,0.40892]
[1730810873126,0.485,2446.4,2446.3,0.40892]
[1730810873822,3.2078,2446.5,2446.1,1.49337]
[1730810874028,0.4088,2447.1,2447.0,0.40878]
[1730810874223,0.40879,2447.1,2447.0,0.40879]
[1730810874830,4.0864,2447.1,2446.8,3.2078]
[1730810875027,0.40882,2446.9,2446.8,3.61663]
[1730810875223,0.4675,2447.0,2446.9,0.40882]
[1730810875224,0.87631,2447.0,2446.9,0.40882]
[1730810875430,0.4675,2447.0,2446.9,0.40882]
[1730810876023,4.9627,2447.0,2446.9,0.40882]
[1730810876627,4.5539,2447.0,2446.8,3.2078]
[1730810876829,0.40884,2446.8,2446.7,0.40884]
[1730810877127,0.40886,2446.7,2446.6,0.40885]
[1730810878529,0.40885,2446.8,2446.7,0.40882]
[1730810879030,4.49605,2446.8,2446.7,0.40882]
[1730810880026,4.49604,2446.8,2446.7,0.40882]
[1730810880829,0.40884,2446.8,2446.7,0.40882]
[1730810882632,0.40884,2446.9,2446.8,0.40882]
[1730810883333,4.49604,2446.9,2446.8,0.40882]
[1730810883739,3.2078,2447.1,2446.7,2.5531081]
[1730810884031,3.2078,2447.1,2447.0,0.4088]
[1730810884444,3.2078,2447.4,2446.9,2.5531081]
[1730810884627,3.2078,2447.4,2447.3,0.40874]
[1730810884628,3.61655,2447.4,2447.3,0.40874]
[1730810885027,0.40877,2447.3,2447.2,0.40875]
[1730810885231,3.61656,2447.4,2447.3,0.40875]
[1730810885625,0.40878,2447.3,2447.2,0.40876]
[1730810886539,3.2078,2447.4,2447.3,0.40875]
[1730810886540,3.61655,2447.4,2447.3,0.40875]
[1730810886930,3.2078,2447.4,2447.3,0.40875]
[1730810887127,0.40872,2447.5,2447.4,0.40873]
[1730810888331,3.2078,2447.6,2447.5,0.40871]
[1730810888737,1.0216,2448.0,2447.7,0.40867]
[1730810888738,0.40868,2447.8,2447.7,0.40867]
[1730810889233,0.89878,2447.8,2447.7,0.40867]
[1730810890030,0.4087,2447.7,2447.6,0.40869]
[1730810890235,0.4087,2447.7,2447.5,2.5531081]
[1730810890236,0.40872,2447.6,2447.5,0.4087]
[1730810890433,4.22957,2447.6,2447.1,3.2078]
[1730810890833,0.40874,2447.4,2447.3,0.40874]
[1730810891236,0.40877,2447.3,2447.2,0.40876]
[1730810891430,0.40877,2447.3,2447.1,3.2078]
[1730810891431,0.91345,2447.4,2447.3,0.40875]
[1730810892642,0.40877,2447.3,2447.2,0.40876]
[1730810893136,0.91345,2447.4,2447.3,0.40875]
[1730810894030,3.2078,2447.6,2447.5,0.40872]
[1730810894541,3.2078,2447.6,2447.5,2.9618281]
[1730810894741,3.2078,2447.6,2447.5,3.20181361]
[1730810895839,4.59906,2447.9,2447.8,0.40867]
[1730810896047,3.2078,2447.9,2447.8,0.40867]
[1730810896847,0.87573,2448.1,2448.0,0.40863]
[1730810897036,3.55619355,2448.1,2447.7,2.5531081]
[1730810897236,3.55619355,2448.1,2447.8,0.40865]
[1730810897237,0.40866,2447.9,2447.8,0.40865]
[1730810897443,0.40869,2447.7,2447.6,0.40868]
[1730810897744,0.40872,2447.6,2447.5,0.40871]
[1730810897948,0.40872,2447.6,2447.4,3.91719649]
[1730810897949,0.9559,2447.8,2447.4,3.91719649]
[1730810898133,1.97758,2447.8,2447.4,3.91719649]
[1730810898339,0.40871,2447.6,2447.5,0.4087]
[1730810898546,0.4641,2447.7,2447.4,0.4789]
[1730810898741,0.40873,2447.4,2447.3,0.40875]
[1730810899439,0.40871,2447.6,2447.5,0.4087]
[1730810899948,3.63636355,2447.8,2447.5,0.4087]
[1730810899949,0.9559,2447.8,2447.5,2.5531081]
[1730810900247,5.88826355,2447.9,2447.5,2.5531081]
[1730810900248,3.2078,2447.9,2447.6,0.5029]
[1730810900547,3.2078,2447.9,2447.8,0.40867]
[1730810901037,0.40864,2448.0,2447.9,0.40865]
[1730810905745,0.40863,2448.1,2448.0,0.40862]
[1730810906541,5.05001,2448.2,2448.1,0.40862]
[1730810906744,9.13481,2448.2,2448.1,0.40862]
[1730810908748,11.81527355,2448.2,2448.1,0.40862]
[1730810908949,0.40865,2448.0,2447.9,0.40863]
[1730810911352,7.32186355,2448.2,2447.7,1.02172]
[1730810911553,0.40863,2448.1,2448.0,0.40862]
[1730810911948,4.6414,2448.2,2447.9,1.02163]
[1730810912142,4.6414,2448.2,2448.1,0.40862]
[1730810912348,5.05,2448.2,2448.1,0.40862]
[1730810912743,3.2078,2448.2,2448.1,0.40862]
[1730810912949,3.2078,2448.2,2448.1,0.88032]
[1730810914753,3.6164,2448.2,2448.1,0.88032]
[1730810915156,3.2078,2448.2,2448.1,0.40862]
[1730810915548,3.6164,2448.2,2448.1,0.40862]
[1730810916855,0.4086,2448.2,2448.1,0.40862]
[1730810919053,3.2078,2448.3,2448.0,3.0184081]
[1730810919259,3.6164,2448.3,2448.2,0.4086]
[1730810920162,0.40862,2448.2,2448.1,0.4086]
[1730810920558,0.90852,2448.2,2448.1,0.4086]
[1730810926576,3.58898355,2448.2,2448.1,0.4086]
[1730810926884,3.58898355,2448.2,2447.9,0.40863]
[1730810926885,0.40865,2448.0,2447.9,0.40863]
[1730810928688,0.90425,2448.0,2447.9,0.40863]
[1730810928887,8.8098,2448.0,2447.4,3.2078]
[1730810929088,0.40869,2447.8,2447.7,0.40867]
[1730810929482,3.08915355,2447.8,2447.7,0.40867]
[1730810929983,2.68046355,2447.8,2447.6,2.5531081]
[1730810930192,0.90288,2447.7,2447.6,0.4087]
[1730810930483,3.58334355,2447.7,2447.6,0.4087]
[1730810932091,3.17466355,2447.7,2447.5,0.4792]
[1730810932290,3.57696355,2447.6,2447.5,0.4087]
[1730810932987,0.40872,2447.5,2447.4,0.40873]
[1730810933185,6.77741459,2447.5,2447.4,0.40873]
[1730810934290,6.36869459,2447.5,2447.4,0.40873]
[1730810935082,6.36869459,2447.5,2447.4,0.6491684]
[1730810935380,3.2078,2447.5,2447.4,0.87003]
[1730810935790,3.2078,2447.5,2447.4,1.56015856]
[1730810937191,3.16249459,2447.6,2447.5,0.40872]
[1730810937393,3.16249459,2447.6,2447.5,0.64914856]
[1730810937994,2.67469459,2447.6,2447.5,3.20225666]
[1730810938196,2.67469459,2447.7,2447.5,2.79353666]
[1730810938394,2.67469459,2447.7,2447.6,1.10882856]
[1730810938594,2.67469459,2447.7,2447.6,1.10886607]
[1730810938999,2.67469459,2447.7,2447.6,1.10886934]
[1730810939192,2.67469459,2447.7,2447.6,0.8684]
[1730810942295,2.67469459,2447.7,2447.6,1.10889921]
[1730810943507,2.67469459,2447.7,2447.6,5.19449921]
[1730810943687,2.67469459,2447.8,2447.6,4.78579921]
[1730810943895,2.67469459,2447.8,2447.7,3.20227869]
[1730810944497,2.67469459,2447.9,2447.7,7.26402131]
[1730810944698,2.67469459,2448.1,2448.0,0.40863]
[1730810944901,2.67469459,2448.1,2448.0,2.9617381]
[1730810945100,3.2078,2448.2,2448.1,0.40862]
[1730810945101,5.88249459,2448.2,2448.1,0.40862]
[1730810945296,5.88249459,2448.2,2448.1,0.86872]
[1730810945699,3.6164,2448.2,2448.1,0.86872]
[1730810945898,3.2078,2448.2,2448.1,0.86872]
[1730810946199,3.2078,2448.2,2448.1,1.10914843]
[1730810947397,5.8837136,2448.2,2448.1,1.10914843]
[1730810948302,5.8837136,2448.2,2448.1,0.86872]
[1730810949002,2.6759136,2448.3,2448.1,0.4601]
[1730810949198,2.6759136,2448.3,2448.2,0.874]
[1730810950304,2.6759136,2448.3,2448.2,7.5119081]
[1730810950512,2.6759136,2448.4,2448.3,0.40858]
[1730810950698,2.67492543,2448.4,2448.3,0.40858]
[1730810950894,0.89296,2448.5,2448.4,0.40857]
[1730810951196,0.4844,2448.5,2448.4,0.40857]
[1730810952195,0.4844,2448.5,2448.4,4.49257]
[1730810952395,4.2151,2448.6,2448.5,0.40855]
[1730810952396,5.88173294,2448.6,2448.5,0.40855]
[1730810952694,3.2078,2448.6,2448.5,4.49255]
[1730810952901,3.2078,2448.6,2448.5,0.40855]
[1730810953203,3.2078,2448.6,2448.5,0.64872052]
[1730810953599,3.2078,2448.6,2448.5,0.90915]
[1730810955300,3.61633,2448.6,2448.5,0.90915]
[1730810955505,4.08053,2448.6,2448.5,0.90915]
[1730810955704,4.1343,2448.6,2448.5,0.40855]
[1730810956306,4.54283,2448.6,2448.5,0.40855]
[1730810956803,4.6372,2448.6,2448.5,0.40855]
[1730810958205,1.4294,2448.6,2448.5,0.40855]
[1730810958409,1.4294,2448.6,2448.4,0.40855]
[1730810958410,4.51186294,2448.6,2448.4,0.40855]
[1730810958605,4.10333294,2448.6,2448.4,0.40855]
[1730810958809,0.40856,2448.5,2448.3,0.40858]
[1730810959203,0.40856,2448.5,2448.2,2.78333364]
[1730810959204,0.40856,2448.5,2448.4,0.40857]
[1730810959406,1.83795,2448.6,2448.3,0.40858]
[1730810959609,1.4294,2448.6,2448.4,0.40855]
[1730810959903,1.4294,2448.6,2448.3,0.40857]
[1730810960115,1.4294,2448.6,2448.2,2.78333364]
[1730810960116,0.40857,2448.4,2448.2,2.78333364]
[1730810960305,0.40859,2448.3,2448.2,0.40859]
[1730810960511,0.4926,2448.3,2448.2,0.40859]
[1730810960706,41.2926,2448.3,2448.2,0.40859]
[1730810961606,0.4926,2448.3,2448.2,2.9616981]
[1730810961908,0.4926,2448.3,2448.2,7.0464981]
[1730810965312,0.4926,2448.3,2448.2,2.9616981]
[1730810966712,3.08248294,2448.6,2448.5,0.40855]
[1730810966913,6.77938294,2448.6,2448.5,0.40855]
[1730810967417,6.77938294,2448.6,2448.5,1.58583023]
[1730810968314,6.37083294,2448.6,2448.5,1.58583023]
[1730810968516,5.88173294,2448.6,2448.5,1.58583023]
[1730810968711,3.59065294,2448.8,2448.7,0.40852]
[1730810968912,3.59065294,2448.8,2448.7,1.58580023]
[1730810969212,0.91672,2448.8,2448.7,1.58580023]
[1730810970201,0.91672,2448.8,2448.7,0.40852]
[1730810970503,0.91671,2448.8,2448.7,0.40852]
[1730810970815,0.40853,2448.7,2448.6,1.17728023]
[1730810971415,0.5082,2448.8,2448.4,1.58584023]
[1730810971416,0.40856,2448.5,2448.4,1.58584023]
[1730810971913,0.88955,2448.6,2448.5,0.40855]
[1730810972106,4.09735,2448.6,2448.5,0.40855]
[1730810972716,0.40855,2448.5,2448.4,1.58584023]
[1730810973108,4.09735,2448.6,2448.5,0.40855]
[1730810976519,3.6888,2448.6,2448.5,0.40855]
[1730810976815,3.6888,2448.6,2448.5,1.58583023]
[1730810976816,4.09733,2448.6,2448.5,1.58583023]
[1730810980714,6.77126294,2448.6,2448.5,1.58583023]
[1730810980910,3.6888,2448.6,2448.5,1.58583023]
[1730810981219,6.77126294,2448.6,2448.5,1.58583023]
[1730810981613,3.56346294,2448.6,2448.5,1.58583023]
[1730810982214,3.56346294,2448.6,2448.5,0.40855]
[1730810983218,3.15493294,2448.6,2448.5,0.40855]
[1730810983420,3.56346294,2448.6,2448.5,0.40855]
[1730810983815,3.15493294,2448.6,2448.5,0.40855]
[1730810984014,3.56346294,2448.6,2448.5,0.40855]
[1730810984216,3.15493294,2448.6,2448.5,0.40855]
[1730810984418,0.481,2448.6,2448.5,0.40855]
[1730810984623,0.88953,2448.6,2448.5,0.40855]
[1730810985021,0.481,2448.6,2448.5,0.40855]
[1730810985321,0.88953,2448.6,2448.5,0.40855]
[1730810985527,0.481,2448.6,2448.5,1.58583023]
[1730810985826,3.15538371,2448.6,2448.5,1.82609956]
[1730810986428,3.15538371,2448.6,2448.5,1.58583023]
[1730810986628,3.15538371,2448.6,2448.5,1.82610769]
[1730810988020,2.67438371,2448.6,2448.5,1.82610769]
[1730810988222,2.67438371,2448.8,2448.5,6.45114453]
[1730810988423,0.4085,2448.8,2448.7,1.58580023]
[1730810988611,0.4085,2448.8,2448.7,2.21065151]
[1730810988817,0.4085,2448.8,2448.7,2.36714453]
[1730810989013,4.4925,2448.8,2448.7,1.1898643]
[1730810989219,7.66008371,2448.8,2448.7,0.24027746]
[1730810989430,7.66008371,2448.8,2448.7,0.62510454]
[1730810989618,4.9857,2448.8,2448.7,0.24027746]
[1730810989816,4.5772,2448.8,2448.4,1.17728023]
[1730810990018,3.2078,2448.7,2448.4,1.17728023]
[1730810990330,0.40853,2448.6,2448.5,2.16483834]
[1730810990623,0.40853,2448.6,2448.5,2.66831976]
[1730810990825,0.89313,2448.6,2448.5,2.25976976]
[1730810991418,4.97713,2448.6,2448.5,0.99418834]
[1730810992531,7.65582828,2448.6,2448.5,0.99418834]
[1730810993432,3.57182828,2448.6,2448.5,0.99418834]
[1730810993629,3.57182828,2448.6,2448.5,0.75394419]
[1730810993831,3.57182828,2448.6,2448.5,0.99459615]
[1730810995633,0.40855,2448.5,2448.4,0.40856]
[1730810995836,0.4878,2448.5,2448.4,1.29740726]
[1730810996339,0.4878,2448.5,2448.4,1.5380974]
[1730810997135,0.89314,2448.6,2448.5,0.40855]
[1730810997333,1.38134,2448.6,2448.5,1.29738726]
[1730810997637,1.38134,2448.6,2448.5,1.53813435]
[1730810997836,0.9728,2448.6,2448.5,1.53813369]
[1730810998430,0.9728,2448.6,2448.5,1.03443377]
[1730810998837,0.4882,2448.6,2448.5,1.03443377]
[1730810999835,0.4748,2448.9,2448.5,0.62588377]
[1730811000042,0.5007,2448.8,2448.6,0.62588377]
[1730811000340,0.5007,2448.8,2448.7,1.03435809]
[1730811000746,0.4748,2448.9,2448.8,0.4085]
[1730811001047,0.4748,2448.9,2448.8,1.50600062]
[1730811002041,3.7085,2449.0,2448.8,1.09750062]
[1730811002242,3.7085,2449.0,2448.9,1.03418062]
[1730811002540,5.88609633,2449.0,2448.9,1.51738062]
[1730811002746,3.2078,2449.0,2448.9,6.58683765]
[1730811003344,2.67829633,2449.2,2449.1,0.40845]
[1730811003545,0.4965,2449.3,2449.2,0.40843]
[1730811003942,0.4965,2449.3,2449.2,0.64879396]
[1730811004146,0.90492,2449.3,2449.2,0.64879396]
[1730811004349,0.90492,2449.3,2449.2,1.03343559]
[1730811004551,1.41272,2449.3,2449.2,1.03343559]
[1730811004843,1.41272,2449.3,2449.2,0.62500559]
[1730811005150,8.0469588,2449.3,2449.2,0.24036396]
[1730811005359,1.42953,2449.2,2448.6,0.40853]
[1730811005646,0.40852,2448.8,2448.7,0.38474135]
[1730811005849,0.40852,2448.8,2448.7,0.79326135]